lending/lending_fUSD_20250121
["ID","MTS","AMOUNT","RATE_DAILY","PERIOD"]
[349777014,1737421847698,-1351.85,0.00020547,2]
[349777015,1737421847707,-915.39,0.00020547,2]
[349777016,1737421847718,-654.51,0.00020547,2]
[349777017,1737421847727,-594.86346554,0.00020547,2]
[349777018,1737421847737,-1413.71,0.00020547,2]
[349777019,1737421847747,-2095.76,0.00020547,2]
[349777020,1737421847756,-500.0,0.00020547,2]
[349777021,1737421847765,-500.0,0.00020547,2]
[349777022,1737421847774,-999.76,0.00020547,2]
[349777023,1737421847783,-500.0,0.00020547,2]
[349777024,1737421847793,-500.0,0.00020547,2]
[349777025,1737421847802,-1977.61,0.00020547,2]
[349777026,1737421847812,-500.0,0.00020547,2]
[349777027,1737421847821,-839.48,0.00020547,2]
[349777028,1737421847830,-2519.65,0.00020547,2]
[349777029,1737421847840,-1135.72,0.00020547,2]
[349777030,1737421847849,-884.58,0.00020547,2]
[349777031,1737421847858,-500.0,0.00020547,2]
[349777032,1737421847867,-500.0,0.00020547,2]
[349777033,1737421847876,-500.0,0.00020547,2]
[349777034,1737421847884,-277.2,0.00020547,2]
[349777035,1737421847893,-964.33,0.00020547,2]
[349777036,1737421847902,-1366.46,0.00020547,2]
[349777037,1737421847911,-500.0,0.00020547,2]
[349777038,1737421847921,-500.0,0.00020547,2]
[349777039,1737421847930,-319.42641707,0.00020547,2]
[349777040,1737421847942,-500.0,0.00020547,2]
[349777041,1737421847951,-500.0,0.00020547,2]
[349777042,1737421847961,-500.0,0.00020547,2]
[349777043,1737421847970,-500.0,0.00020547,2]
[349777044,1737421847980,-500.0,0.00020547,2]
[349777045,1737421847989,-622.51,0.00020547,2]
[349777046,1737421847999,-500.0,0.00020547,2]
[349777047,1737421848008,-1907.54806902,0.00020562,2]
[349777048,1737421848018,-1000.0,0.00020607,2]
[349777049,1737421848028,-781.0,0.0002063,2]
[349777050,1737421848038,-1261.0,0.0002063,2]
[349777051,1737421848049,-907.0,0.0002063,2]
[349777052,1737421848059,-2947.0,0.0002063,2]
[349777053,1737421848069,-150.0,0.0002063,2]
[349777054,1737421848078,-3983.0,0.0002063,2]
[349777055,1737421848088,-537.0,0.0002063,2]
[349777056,1737421848097,-500.0,0.00020687,2]
[349777057,1737421848107,-500.0,0.00020687,2]
[349777058,1737421848118,-500.0,0.00020687,2]
[349777059,1737421848128,-500.0,0.00020687,2]
[349777060,1737421848138,-781.4,0.00020687,2]
[349777061,1737421848148,-500.0,0.00020687,2]
[349777062,1737421848157,-572.15,0.00020687,2]
[349777063,1737421848168,-2101.56,0.00020687,2]
[349777064,1737421848177,-2683.28,0.00020687,2]
[349777065,1737421848190,-500.0,0.00020687,2]
[349777066,1737421848200,-500.0,0.00020687,2]
[349777067,1737421848210,-603.96,0.00020687,2]
[349777068,1737421848221,-559.48,0.00020687,2]
[349777069,1737421848231,-500.0,0.00020687,2]
[349777070,1737421848241,-500.0,0.00020687,2]
[349777071,1737421848251,-1434.01,0.00020687,2]
[349777072,1737421848260,-758.89,0.00020687,2]
[349777073,1737421848270,-164.1,0.00020687,2]
[349777074,1737421848280,-500.0,0.00020687,2]
[349777075,1737421848291,-743.27,0.00020687,2]
[349777076,1737421848301,-693.55,0.00020687,2]
[349777077,1737421848311,-500.0,0.00020687,2]
[349777078,1737421848322,-887.81,0.00020687,2]
[349777079,1737421848332,-500.0,0.00020687,2]
[349777080,1737421848342,-950.32,0.00020687,2]
[349777081,1737421848354,-523.93,0.00020687,2]
[349777082,1737421848364,-172.76549857,0.00020687,2]
[349777083,1737421848374,-871.42,0.00020687,2]
[349777084,1737421848384,-558.41,0.00020687,2]
[349777085,1737421848393,-500.0,0.00020687,2]
[349777086,1737421848403,-1306.02,0.00020687,2]
[349777087,1737421848413,-1520.18,0.00020687,2]
[349777088,1737421848423,-500.0,0.00020687,2]
[349777089,1737421848435,-1138.68,0.00020687,2]
[349777090,1737421848446,-1330.51,0.00020687,2]
[349777091,1737421848456,-1000.0,0.00020688,2]
[349777092,1737421848465,-500.0,0.00020688,2]
[349777093,1737421848475,-500.0,0.00020688,2]
[349777094,1737421848486,-500.0,0.00020688,2]
[349777095,1737421848496,-549.9,0.00020688,2]
[349777096,1737421848505,-500.0,0.00020688,2]
[349777097,1737421848516,-609.18045016,0.00020688,2]
[349777098,1737421848525,-500.0,0.00020688,2]
[349777099,1737421848535,-500.0,0.00020688,2]
[349777100,1737421848544,-500.0,0.00020688,2]
[349777101,1737421848555,-500.0,0.00020688,2]
[349777102,1737421848565,-500.0,0.00020688,2]
[349777103,1737421848576,-573.04,0.00020688,2]
[349777104,1737421848586,-563.53,0.00020688,2]
[349777105,1737421848596,-500.0,0.00020688,2]
[349777106,1737421848605,-500.0,0.00020688,2]
[349777107,1737421848615,-500.0,0.00020688,2]
[349777108,1737421848624,-445.25113678,0.00020688,2]
[349777109,1737421848635,-500.0,0.00020688,2]
[349777110,1737421848646,-500.0,0.00020688,2]
[349777111,1737421848655,-500.0,0.00020688,2]
[349777112,1737421848665,-609.48,0.00020688,2]
[349777113,1737421848675,-500.0,0.00020688,2]
[349777114,1737421848686,-584.56,0.00020688,2]
[349777115,1737421848696,-500.0,0.00020688,2]
[349777116,1737421848706,-500.0,0.00020688,2]
[349777117,1737421848715,-500.0,0.00020688,2]
[349777118,1737421848725,-500.0,0.00020688,2]
[349777119,1737421848735,-500.0,0.00020688,2]
[349777120,1737421848745,-500.0,0.00020688,2]
[349777121,1737421848755,-500.0,0.00020688,2]
[349777122,1737421848765,-163.85111953,0.00020696,2]
[349777123,1737421848778,-48240.67226609,0.00020708,2]
[349777124,1737421848788,-500.0,0.0002072,2]
[349777125,1737421848798,-500.0,0.0002072,2]
[349777126,1737421848809,-1422.62,0.0002072,2]
[349777127,1737421848823,-319.676744,0.0002072,2]
[349777128,1737421848833,-500.0,0.0002072,2]
[349777129,1737421848843,-760.87,0.0002072,2]
[349777130,1737421848853,-500.0,0.0002072,2]
[349777131,1737421848867,-635.5,0.0002072,2]
[349777132,1737421848878,-477.313186,0.0002072,2]
[349777133,1737421848887,-919.57,0.0002072,2]
[349777134,1737421848897,-500.0,0.0002072,2]
[349777135,1737421848906,-500.0,0.0002072,2]
[349777136,1737421848916,-515.21,0.0002072,2]
[349777137,1737421848925,-1335.21,0.0002072,2]
[349777138,1737421848936,-629.2,0.0002072,2]
[349777139,1737421848945,-1021.97,0.0002072,2]
[349777140,1737421848955,-673.46,0.0002072,2]
[349777141,1737421848965,-500.0,0.0002072,2]
[349777142,1737421848975,-500.0,0.0002072,2]
[349777143,1737421848985,-2015.79,0.0002072,2]
[349777144,1737421848996,-1271.66,0.0002072,2]
[349777145,1737421849006,-876.91,0.0002072,2]
[349777146,1737421849016,-675.65,0.0002072,2]
[349777147,1737421849026,-1435.01,0.0002072,2]
[349777148,1737421849036,-1573.81,0.0002072,2]
[349777149,1737421849046,-500.0,0.0002072,2]
[349777150,1737421849055,-749.38,0.0002072,2]
[349777151,1737421849065,-932.14,0.0002072,2]
[349777152,1737421849075,-1666.41,0.0002072,2]
[349777153,1737421849085,-605.64,0.0002072,2]
[349777154,1737421849094,-559.82,0.0002082,2]
[349777155,1737421849105,-1024.51,0.0002082,2]
[349777156,1737421849114,-767.43,0.0002082,2]
[349777157,1737421849124,-505.9,0.0002082,2]
[349777158,1737421849133,-1255.86,0.0002082,2]
[349777159,1737421849143,-500.0,0.0002082,2]
[349777160,1737421849152,-717.09,0.0002082,2]
[349777161,1737421849162,-500.0,0.00020821,2]
[349777162,1737421849172,-315.8667381,0.00020821,2]
[349777163,1737421849181,-500.0,0.00020821,2]
[349777164,1737421849194,-500.0,0.00020821,2]
[349777165,1737421849204,-753.11,0.00020821,2]
[349777166,1737421849214,-500.0,0.00020821,2]
[349777167,1737421849224,-500.0,0.00020821,2]
[349777168,1737421849234,-500.0,0.00020821,2]
[349777169,1737421849245,-500.0,0.00020821,2]
[349777170,1737421849255,-500.0,0.00020821,2]
[349777171,1737421849265,-500.0,0.00020821,2]
[349777172,1737421849275,-500.0,0.00020821,2]
[349777173,1737421849286,-500.0,0.00020821,2]
[349777174,1737421849296,-500.0,0.00020821,2]
[349777175,1737421849306,-500.0,0.00020821,2]
[349777176,1737421849316,-500.0,0.00020821,2]
[349777177,1737421849328,-500.0,0.00020821,2]
[349777178,1737421849338,-500.0,0.00020821,2]
[349777179,1737421849349,-593.78476596,0.00020821,2]
[349777180,1737421849359,-500.0,0.00020821,2]
[349777181,1737421849369,-500.0,0.00020821,2]
[349777182,1737421849379,-500.0,0.00020821,2]
[349777183,1737421849389,-500.0,0.00020821,2]
[349777184,1737421849399,-500.0,0.00020821,2]
[349777185,1737421849409,-500.0,0.00020821,2]
[349777186,1737421849418,-500.0,0.00020821,2]
[349777187,1737421849428,-500.0,0.00020821,2]
[349777188,1737421849439,-500.0,0.00020821,2]
[349777189,1737421849448,-593.49,0.00020821,2]
[349777190,1737421849458,-500.0,0.00020821,2]
[349777191,1737421849469,-523.08,0.00020821,2]
[349777192,1737421849479,-564.72,0.00020821,2]
[349777193,1737421849488,-681.78,0.00020821,2]
[349777194,1737421849498,-246.03,0.00020821,2]
[349777195,1737421849508,-654.7,0.00020821,2]
[349777196,1737421849518,-500.0,0.00020821,2]
[349777197,1737421849527,-640.46,0.00020821,2]
[349777198,1737421849536,-835.96,0.00020821,2]
[349777199,1737421849546,-1351.85,0.00020821,2]
[349777200,1737421849558,-915.39,0.00020821,2]
[349777201,1737421849568,-654.51,0.00020821,2]
[349777202,1737421849578,-1413.71,0.00020821,2]
[349777203,1737421849588,-2095.76,0.00020821,2]
[349777204,1737421849598,-500.0,0.00020821,2]
[349777205,1737421849608,-500.0,0.00020821,2]
[349777206,1737421849617,-999.76,0.00020821,2]
[349777207,1737421849627,-500.0,0.00020821,2]
[349777208,1737421849637,-1977.61,0.00020821,2]
[349777209,1737421849646,-404.63,0.00020821,2]
[349777210,1737421849655,-500.0,0.00020821,2]
[349777211,1737421849664,-839.48,0.00020821,2]
[349777212,1737421849674,-2519.65,0.00020821,2]
[349777213,1737421849684,-1135.72,0.00020821,2]
[349777214,1737421849698,-884.58,0.00020821,2]
[349777215,1737421849708,-500.0,0.00020821,2]
[349777216,1737421849718,-500.0,0.00020821,2]
[349777217,1737421849727,-371.18539508,0.00020821,2]
[349777218,1737421849737,-964.33,0.00020821,2]
[349777219,1737421849746,-1366.46,0.00020821,2]
[349777220,1737421849755,-500.0,0.00020821,2]
[349777221,1737421849764,-500.0,0.00020821,2]
[349777222,1737421849774,-500.0,0.00020821,2]
[349777223,1737421849783,-500.0,0.00020821,2]
[349777224,1737421849793,-500.0,0.00020821,2]
[349777225,1737421849802,-500.0,0.00020821,2]
[349777226,1737421849811,-500.0,0.00020821,2]
[349777227,1737421849821,-622.51,0.00020821,2]
[349777228,1737421849831,-354.18887977,0.00020821,2]
[349777229,1737421849840,-1907.54806902,0.0002083,2]
[349777230,1737421849849,-161.053,0.000209,2]
[349777231,1737421849858,-264.99370087,0.000209,2]
[349777232,1737421849868,-500.0,0.00020961,2]
[349777233,1737421849877,-500.0,0.00020961,2]
[349777234,1737421849887,-500.0,0.00020961,2]
[349777235,1737421849896,-500.0,0.00020961,2]
[349777236,1737421849905,-781.4,0.00020961,2]
[349777237,1737421849915,-500.0,0.00020961,2]
[349777238,1737421849924,-572.15,0.00020961,2]
[349777239,1737421849934,-2101.56,0.00020961,2]
[349777240,1737421849945,-2683.28,0.00020961,2]
[349777241,1737421849954,-500.0,0.00020961,2]
[349777242,1737421849964,-500.0,0.00020961,2]
[349777243,1737421849974,-603.96,0.00020961,2]
[349777244,1737421849983,-559.48,0.00020961,2]
[349777245,1737421849992,-500.0,0.00020961,2]
[349777246,1737421850002,-500.0,0.00020961,2]
[349777247,1737421850012,-1434.01,0.00020961,2]
[349777248,1737421850021,-758.89,0.00020961,2]
[349777249,1737421850030,-500.0,0.00020961,2]
[349777250,1737421850040,-743.27,0.00020961,2]
[349777251,1737421850050,-693.55,0.00020961,2]
[349777252,1737421850059,-500.0,0.00020961,2]
[349777253,1737421850068,-887.81,0.00020961,2]
[349777254,1737421850077,-500.0,0.00020961,2]
[349777255,1737421850087,-950.32,0.00020961,2]
[349777256,1737421850097,-523.93,0.00020961,2]
[349777257,1737421850106,-871.42,0.00020961,2]
[349777258,1737421850116,-558.41,0.00020961,2]
[349777259,1737421850126,-500.0,0.00020961,2]
[349777260,1737421850135,-1306.02,0.00020961,2]
[349777261,1737421850145,-1520.18,0.00020961,2]
[349777262,1737421850154,-500.0,0.00020961,2]
[349777263,1737421850164,-1138.68,0.00020961,2]
[349777264,1737421850173,-1330.51,0.00020961,2]
[349777265,1737421850183,-500.0,0.00020962,2]
[349777266,1737421850195,-500.0,0.00020962,2]
[349777267,1737421850205,-500.0,0.00020962,2]
[349777268,1737421850214,-500.0,0.00020962,2]
[349777269,1737421850224,-500.0,0.00020962,2]
[349777270,1737421850233,-500.0,0.00020962,2]
[349777271,1737421850242,-500.0,0.00020962,2]
[349777272,1737421850252,-500.0,0.00020962,2]
[349777273,1737421850261,-500.0,0.00020962,2]
[349777274,1737421850271,-500.0,0.00020962,2]
[349777275,1737421850392,-500.0,0.00020962,2]
[349777276,1737421850417,-500.0,0.00020962,2]
[349777277,1737421850427,-500.0,0.00020962,2]
[349777278,1737421850439,-245.66,0.00020962,2]
[349777279,1737421850448,-500.0,0.00020962,2]
[349777280,1737421850458,-609.48,0.00020962,2]
[349777281,1737421850467,-500.0,0.00020962,2]
[349777282,1737421850476,-584.56,0.00020962,2]
[349777283,1737421850485,-500.0,0.00020962,2]
[349777284,1737421850495,-500.0,0.00020962,2]
[349777285,1737421850504,-500.0,0.00020962,2]
[349777286,1737421850514,-500.0,0.00020962,2]
[349777287,1737421850523,-500.0,0.00020962,2]
[349777288,1737421850532,-500.0,0.00020962,2]
[349777289,1737421850543,-500.0,0.00020962,2]
[349777290,1737421850553,-500.0,0.00020994,2]
[349777291,1737421850563,-500.0,0.00020994,2]
[349777292,1737421850572,-1422.62,0.00020994,2]
[349777293,1737421850581,-319.676744,0.00020994,2]
[349777294,1737421850593,-500.0,0.00020994,2]
[349777295,1737421850602,-760.87,0.00020994,2]
[349777296,1737421850611,-500.0,0.00020994,2]
[349777297,1737421850620,-635.5,0.00020994,2]
[349777298,1737421850630,-477.313186,0.00020994,2]
[349777299,1737421850640,-919.57,0.00020994,2]
[349777300,1737421850649,-500.0,0.00020994,2]
[349777301,1737421850659,-500.0,0.00020994,2]
[349777302,1737421850668,-515.21,0.00020994,2]
[349777303,1737421850679,-1335.21,0.00020994,2]
[349777304,1737421850691,-629.2,0.00020994,2]
[349777305,1737421850701,-1021.97,0.00020994,2]
[349777306,1737421850711,-673.46,0.00020994,2]
[349777307,1737421850721,-500.0,0.00020994,2]
[349777308,1737421850731,-500.0,0.00020994,2]
[349777309,1737421850741,-2015.79,0.00020994,2]
[349777310,1737421850750,-1271.66,0.00020994,2]
[349777311,1737421850759,-876.91,0.00020994,2]
[349777312,1737421850768,-675.65,0.00020994,2]
[349777313,1737421850777,-1435.01,0.00020994,2]
[349777314,1737421850787,-1573.81,0.00020994,2]
[349777315,1737421850796,-500.0,0.00020994,2]
[349777316,1737421850806,-749.38,0.00020994,2]
[349777317,1737421850815,-932.14,0.00020994,2]
[349777318,1737421850825,-1666.41,0.00020994,2]
[349777319,1737421850834,-605.64,0.00020994,2]
[349777320,1737421850843,-261.0,0.00021,2]
[349777321,1737421850853,-261.0,0.00021,2]
[349777322,1737421850862,-261.0,0.00021,2]
[349777323,1737421850871,-48240.67226609,0.00021006,2]
[349777324,1737421850881,-559.82,0.00021094,2]
[349777325,1737421850890,-1024.51,0.00021094,2]
[349777326,1737421850899,-767.43,0.00021094,2]
[349777327,1737421850909,-505.9,0.00021094,2]
[349777328,1737421850918,-1255.86,0.00021094,2]
[349777329,1737421850928,-500.0,0.00021094,2]
[349777330,1737421850939,-717.09,0.00021094,2]
[349777331,1737421850949,-500.0,0.00021095,2]
[349777332,1737421850958,-500.0,0.00021095,2]
[349777333,1737421850967,-500.0,0.00021095,2]
[349777334,1737421850977,-753.11,0.00021095,2]
[349777335,1737421850986,-500.0,0.00021095,2]
[349777336,1737421850996,-500.0,0.00021095,2]
[349777337,1737421851005,-500.0,0.00021095,2]
[349777338,1737421851015,-500.0,0.00021095,2]
[349777339,1737421851024,-291.89811375,0.00021095,2]
[349777340,1737421851034,-500.0,0.00021095,2]
[349777341,1737421851043,-500.0,0.00021095,2]
[349777342,1737421851053,-500.0,0.00021095,2]
[349777343,1737421851062,-500.0,0.00021095,2]
[349777344,1737421851071,-500.0,0.00021095,2]
[349777345,1737421851080,-500.0,0.00021095,2]
[349777346,1737421851090,-500.0,0.00021095,2]
[349777347,1737421851099,-500.0,0.00021095,2]
[349777348,1737421851109,-500.0,0.00021095,2]
[349777349,1737421851118,-500.0,0.00021095,2]
[349777350,1737421851127,-500.0,0.00021095,2]
[349777351,1737421851136,-500.0,0.00021095,2]
[349777352,1737421851146,-500.0,0.00021095,2]
[349777353,1737421851155,-500.0,0.00021095,2]
[349777354,1737421851164,-500.0,0.00021095,2]
[349777355,1737421851174,-500.0,0.00021095,2]
[349777356,1737421851184,-500.0,0.00021095,2]
[349777357,1737421851194,-593.49,0.00021095,2]
[349777358,1737421851203,-269.38,0.00021095,2]
[349777359,1737421851212,-523.08,0.00021095,2]
[349777360,1737421851222,-564.72,0.00021095,2]
[349777361,1737421851231,-681.78,0.00021095,2]
[349777362,1737421851240,-654.7,0.00021095,2]
[349777363,1737421851249,-500.0,0.00021095,2]
[349777364,1737421851258,-640.46,0.00021095,2]
[349777365,1737421851268,-835.96,0.00021095,2]
[349777366,1737421851277,-1351.85,0.00021095,2]
[349777367,1737421851286,-915.39,0.00021095,2]
[349777368,1737421851296,-654.51,0.00021095,2]
[349777369,1737421851305,-1413.71,0.00021095,2]
[349777370,1737421851314,-2095.76,0.00021095,2]
[349777371,1737421851323,-500.0,0.00021095,2]
[349777372,1737421851331,-500.0,0.00021095,2]
[349777373,1737421851341,-999.76,0.00021095,2]
[349777374,1737421851350,-500.0,0.00021095,2]
[349777375,1737421851360,-1977.61,0.00021095,2]
[349777376,1737421851369,-500.0,0.00021095,2]
[349777377,1737421851378,-839.48,0.00021095,2]
[349777378,1737421851387,-2519.65,0.00021095,2]
[349777379,1737421851397,-1135.72,0.00021095,2]
[349777380,1737421851406,-884.58,0.00021095,2]
[349777381,1737421851415,-500.0,0.00021095,2]
[349777382,1737421851424,-500.0,0.00021095,2]
[349777383,1737421851433,-964.33,0.00021095,2]
[349777384,1737421851443,-1366.46,0.00021095,2]
[349777385,1737421851452,-500.0,0.00021095,2]
[349777386,1737421851461,-500.0,0.00021095,2]
[349777387,1737421851470,-500.0,0.00021095,2]
[349777388,1737421851480,-500.0,0.00021095,2]
[349777389,1737421851489,-215.57463393,0.00021095,2]
[349777390,1737421851498,-500.0,0.00021095,2]
[349777391,1737421851507,-500.0,0.00021095,2]
[349777392,1737421851516,-622.51,0.00021095,2]
[349777393,1737421851526,-1016.0,0.00021096,4]
[349777394,1737421851535,-163.85111953,0.00021097,2]
[349777395,1737421851545,-1907.54806902,0.00021097,2]
[349777396,1737421851557,-389.55,0.00021178,2]
[349777397,1737421851567,-150.0,0.00021178,2]
[349777398,1737421851576,-981.55,0.00021178,2]
[349777399,1737421851586,-150.0,0.00021178,2]
[349777400,1737421851595,-150.0,0.00021178,2]
[349777401,1737421851605,-150.0,0.00021178,2]
[349777402,1737421851614,-437.63,0.00021178,2]
[349777403,1737421851623,-150.0,0.00021178,2]
[349777404,1737421851632,-150.0,0.00021178,2]
[349777405,1737421851641,-150.0,0.00021178,2]
[349777406,1737421851650,-981.55,0.00021178,2]
[349777407,1737421851659,-150.0,0.00021178,2]
[349777408,1737421851669,-150.0,0.00021178,2]
[349777409,1737421851679,-437.63,0.00021178,2]
[349777410,1737421851690,-150.0,0.00021178,2]
[349777411,1737421851699,-981.55,0.00021178,2]
[349777412,1737421851709,-437.63,0.00021178,2]
[349777413,1737421851719,-150.0,0.00021178,2]
[349777414,1737421851728,-150.0,0.00021178,2]
[349777415,1737421851738,-150.0,0.00021178,2]
[349777416,1737421851747,-150.0,0.00021178,2]
[349777417,1737421851756,-981.55,0.00021178,2]
[349777418,1737421851765,-150.0,0.00021178,2]
[349777419,1737421851775,-437.63,0.00021178,2]
[349777420,1737421851784,-150.0,0.00021178,2]
[349777421,1737421851793,-150.0,0.00021178,2]
[349777422,1737421851803,-150.0,0.00021178,2]
[349777423,1737421851812,-150.0,0.00021178,2]
[349777424,1737421851822,-437.63,0.00021178,2]
[349777425,1737421851831,-981.55,0.00021178,2]
[349777426,1737421851840,-150.0,0.00021178,2]
[349777427,1737421851849,-150.0,0.00021178,2]
[349777428,1737421851859,-187.95,0.00021178,2]
[349777429,1737421851868,-981.55,0.00021178,2]
[349777430,1737421851877,-150.0,0.00021178,2]
[349777431,1737421851886,-437.15,0.00021178,2]
[349777432,1737421851896,-981.55,0.00021178,2]
[349777433,1737421851905,-150.0,0.00021178,2]
[349777434,1737421851914,-150.0,0.00021178,2]
[349777435,1737421851924,-981.55,0.00021178,2]
[349777436,1737421851933,-500.0,0.00021235,2]
[349777437,1737421851943,-500.0,0.00021235,2]
[349777438,1737421851952,-500.0,0.00021235,2]
[349777439,1737421851962,-500.0,0.00021235,2]
[349777440,1737421851971,-781.4,0.00021235,2]
[349777441,1737421851980,-500.0,0.00021235,2]
[349777442,1737421851990,-572.15,0.00021235,2]
[349777443,1737421851999,-2101.56,0.00021235,2]
[349777444,1737421852008,-2683.28,0.00021235,2]
[349777445,1737421852017,-500.0,0.00021235,2]
[349777446,1737421852027,-500.0,0.00021235,2]
[349777447,1737421852036,-603.96,0.00021235,2]
[349777448,1737421852046,-559.48,0.00021235,2]
[349777449,1737421852056,-500.0,0.00021235,2]
[349777450,1737421852065,-500.0,0.00021235,2]
[349777451,1737421852074,-1434.01,0.00021235,2]
[349777452,1737421852084,-758.89,0.00021235,2]
[349777453,1737421852093,-500.0,0.00021235,2]
[349777454,1737421852103,-743.27,0.00021235,2]
[349777455,1737421852112,-693.55,0.00021235,2]
[349777456,1737421852121,-500.0,0.00021235,2]
[349777457,1737421852131,-887.81,0.00021235,2]
[349777458,1737421852140,-500.0,0.00021235,2]
[349777459,1737421852149,-950.32,0.00021235,2]
[349777460,1737421852158,-523.93,0.00021235,2]
[349777461,1737421852168,-871.42,0.00021235,2]
[349777462,1737421852178,-558.41,0.00021235,2]
[349777463,1737421852189,-500.0,0.00021235,2]
[349777464,1737421852199,-1306.02,0.00021235,2]
[349777465,1737421852208,-1520.18,0.00021235,2]
[349777466,1737421852217,-500.0,0.00021235,2]
[349777467,1737421852227,-1138.68,0.00021235,2]
[349777468,1737421852236,-1330.51,0.00021235,2]
[349777469,1737421852245,-500.0,0.00021236,2]
[349777470,1737421852255,-500.0,0.00021236,2]
[349777471,1737421852265,-500.0,0.00021236,2]
[349777472,1737421852275,-500.0,0.00021236,2]
[349777473,1737421852284,-500.0,0.00021236,2]
[349777474,1737421852294,-500.0,0.00021236,2]
[349777475,1737421852304,-500.0,0.00021236,2]
[349777476,1737421852315,-500.0,0.00021236,2]
[349777477,1737421852325,-565.02,0.00021236,2]
[349777478,1737421852334,-500.0,0.00021236,2]
[349777479,1737421852344,-500.0,0.00021236,2]
[349777480,1737421852353,-500.0,0.00021236,2]
[349777481,1737421852363,-500.0,0.00021236,2]
[349777482,1737421852372,-500.0,0.00021236,2]
[349777483,1737421852381,-609.48,0.00021236,2]
[349777484,1737421852390,-194.96,0.00021236,2]
[349777485,1737421852399,-584.56,0.00021236,2]
[349777486,1737421852409,-500.0,0.00021236,2]
[349777487,1737421852419,-246.01,0.00021236,2]
[349777488,1737421852428,-500.0,0.00021236,2]
[349777489,1737421852440,-500.0,0.00021236,2]
[349777490,1737421852450,-500.0,0.00021236,2]
[349777491,1737421852460,-500.0,0.00021236,2]
[349777492,1737421852469,-500.0,0.00021236,2]
[349777493,1737421852479,-500.0,0.00021268,2]
[349777494,1737421852487,-500.0,0.00021268,2]
[349777495,1737421852497,-1422.62,0.00021268,2]
[349777496,1737421852506,-319.676744,0.00021268,2]
[349777497,1737421852516,-500.0,0.00021268,2]
[349777498,1737421852525,-760.87,0.00021268,2]
[349777499,1737421852534,-500.0,0.00021268,2]
[349777500,1737421852544,-635.5,0.00021268,2]
[349777501,1737421852558,-477.313186,0.00021268,2]
[349777502,1737421852567,-919.57,0.00021268,2]
[349777503,1737421852577,-500.0,0.00021268,2]
[349777504,1737421852586,-500.0,0.00021268,2]
[349777505,1737421852597,-515.21,0.00021268,2]
[349777506,1737421852607,-1335.21,0.00021268,2]
[349777507,1737421852616,-629.2,0.00021268,2]
[349777508,1737421852627,-1021.97,0.00021268,2]
[349777509,1737421852636,-673.46,0.00021268,2]
[349777510,1737421852646,-500.0,0.00021268,2]
[349777511,1737421852655,-500.0,0.00021268,2]
[349777512,1737421852665,-2015.79,0.00021268,2]
[349777513,1737421852674,-1271.66,0.00021268,2]